bitfinex/quotes_ETHUSD_20240707
["timestamp","ask_amount","ask_price","bid_price","bid_amount"]
[1720392309127,0.27418237,2962.4,2961.5,0.04226774]
[1720392309824,0.27418237,2962.4,2961.5,0.10979235]
[1720392309980,0.27418237,2962.4,2961.6,0.55]
[1720392310506,0.27418237,2962.4,2961.7,0.04226774]
[1720392311499,0.27418237,2962.4,2961.5,0.61752459]
[1720392311740,0.27418237,2962.4,2961.6,0.04226774]
[1720392313448,0.3016006,2962.3,2961.6,0.04226774]
[1720392314200,0.35372367,2962.5,2961.6,0.04226774]
[1720392314425,0.35372367,2962.5,2961.8,2.4443]
[1720392314731,0.35372367,2962.5,2961.9,0.65959446]
[1720392315737,0.35372367,2962.5,2961.9,0.5920796]
[1720392315955,0.35372367,2962.5,2962.0,0.30363796]
[1720392316102,0.35372367,2962.5,2961.9,0.0420796]
[1720392316312,0.35372367,2962.5,2961.4,6.08229738]
[1720392316514,0.35372367,2962.5,2962.0,0.0420796]
[1720392316844,0.35372367,2962.5,2961.4,6.42129738]
[1720392316845,0.35372367,2962.5,2962.1,0.0420796]
[1720392317042,0.35372367,2962.5,2961.4,6.08229738]
[1720392317367,0.35372367,2962.5,2961.6,4.4763]
[1720392317650,9.9012,2963.7,2961.7,5.92050366]
[1720392317852,0.35367582,2963.0,2961.9,2.4443]
[1720392318177,3.37,2963.9,2962.1,6.7793]
[1720392318318,0.35364112,2963.5,2962.1,6.7793]
[1720392318518,0.35364112,2963.5,2962.3,0.339]
[1720392318719,3.37,2963.9,2962.5,0.339]
[1720392318916,0.35362367,2963.5,2962.5,0.339]
[1720392319230,3.37,2963.9,2962.6,0.9310796]
[1720392319435,0.35361744,2963.5,2962.6,0.3810796]
[1720392319635,3.337,2963.8,2962.8,2.4443]
[1720392320170,0.35361278,2963.6,2962.9,0.59173331]
[1720392320373,0.35361278,2963.6,2962.9,0.659225]
[1720392321568,1.99,2964.3,2962.9,0.659225]
[1720392321871,0.35357113,2964.0,2963.1,2.4443]
[1720392322051,0.35357113,2964.0,2963.2,0.65912116]
[1720392322216,2.10710576,2965.4,2963.5,4.4763]
[1720392322415,0.11018465,2965.3,2963.6,3.99792285]
[1720392322656,0.35350978,2965.3,2963.8,0.339]
[1720392322993,0.35350978,2965.3,2963.9,0.61746155]
[1720392323150,0.11017532,2965.2,2963.9,0.658913]
[1720392323347,0.35350978,2965.3,2963.9,0.658913]
[1720392324373,0.35350978,2965.3,2963.9,0.997913]
[1720392324577,0.35350978,2965.3,2963.9,1.18244653]
[1720392326332,0.35350978,2965.3,2964.0,2.4002]
[1720392326608,0.35350978,2965.3,2964.1,0.61746152]
[1720392326746,0.35350978,2965.3,2964.1,0.65753321]
[1720392328648,0.35350978,2965.3,2964.1,0.59007169]
[1720392329294,0.35350978,2965.3,2964.1,0.88909886]
[1720392331407,0.35350978,2965.3,2964.1,0.59007169]
[1720392331813,0.35350978,2965.3,2964.2,0.06742455]
[1720392332107,0.35350978,2965.3,2964.3,0.59000745]
[1720392332315,0.35350978,2965.3,2964.4,0.06742]
[1720392332495,0.35350978,2965.3,2964.6,2.2662]
[1720392332704,0.73795566,2965.3,2964.7,0.65743989]
[1720392333186,0.73795566,2965.3,2964.7,0.59000745]
[1720392333375,0.35350978,2965.3,2964.7,0.59000745]
[1720392336010,0.35350978,2965.3,2964.7,0.04000745]
[1720392336415,0.35350978,2965.3,2964.5,0.55]
[1720392336644,0.35350978,2965.3,2964.8,0.03981474]
[1720392336931,0.35350978,2965.3,2964.9,0.03981474]
[1720392337284,2.3651,2965.3,2964.5,0.55]
[1720392337486,0.23651,2965.2,2964.6,0.03981474]
[1720392337741,0.23651,2965.2,2964.4,0.55]
[1720392338021,0.23651,2965.2,2964.7,0.03981474]
[1720392338209,0.23651,2965.2,2964.4,0.55]
[1720392338518,0.49094901,2965.5,2964.4,0.55]
[1720392338725,0.49094901,2965.5,2964.5,0.03981474]
[1720392341841,0.84443404,2965.5,2964.5,0.03981474]
[1720392344025,0.49094901,2965.5,2964.5,0.03981474]
[1720392344855,0.49094901,2965.5,2964.6,2.3132]
[1720392345057,0.3490949,2965.4,2964.7,0.55]
[1720392345348,0.49094901,2965.5,2964.8,0.03981474]
[1720392345513,3.0,2965.6,2964.8,0.03981474]
[1720392345716,3.0,2965.5,2964.8,0.03981474]
[1720392345939,1.99,2965.7,2964.8,0.03981474]
[1720392352229,2.295,2965.6,2964.8,0.03981474]
[1720392352480,5.295,2965.6,2964.7,0.55]
[1720392352636,0.7285,2965.5,2964.7,0.55]
[1720392352971,3.7285,2965.5,2964.7,0.55]
[1720392354002,0.35346434,2965.4,2964.7,0.55]
[1720392356308,2.295,2965.0,2964.3,5.82997384]
[1720392356456,0.33954045,2964.9,2964.4,0.03721634]
[1720392356659,0.11004045,2964.8,2964.4,0.03721634]
[1720392356852,2.295,2964.6,2964.4,0.03721634]
[1720392357361,2.295,2964.6,2963.8,2.3708]
[1720392357362,0.11005076,2964.5,2963.8,2.3708]
[1720392357663,0.24050508,2964.4,2963.8,2.3708]
[1720392357872,0.11005076,2964.3,2963.8,2.3708]
[1720392358880,0.11003863,2964.2,2963.8,2.3708]
[1720392359070,0.24050508,2964.4,2963.6,5.82997384]
[1720392359274,2.295,2964.2,2963.7,0.55]
[1720392359589,0.35053911,2964.1,2963.6,5.82997384]
[1720392359808,0.11003555,2964.0,2963.6,5.82997384]
[1720392360473,0.11004013,2963.9,2963.6,5.82997384]
[1720392360675,0.11004013,2963.8,2963.4,2.3708]
[1720392360978,0.24050356,2964.1,2963.5,0.55]
[1720392361172,0.11003721,2964.0,2963.5,0.55]
[1720392362375,0.11003721,2964.0,2963.5,0.84208]
[1720392362590,0.11003721,2963.9,2963.5,0.84208]
[1720392362790,0.11003721,2963.8,2963.5,0.55]
[1720392362966,0.11003721,2963.7,2963.4,2.3708]
[1720392363163,0.11003721,2963.6,2963.2,5.82997384]
[1720392363387,0.11003721,2963.5,2963.2,5.82997384]
[1720392363712,0.11003721,2963.4,2963.2,5.82997384]
[1720392363915,5.10856885,2964.0,2963.2,5.82997384]
[1720392363916,0.11003721,2963.3,2963.2,5.82997384]
[1720392364202,5.10856885,2964.0,2963.0,2.4503]
[1720392364361,2.96452495,2963.9,2963.0,2.4503]
[1720392364561,3.10998701,2963.8,2963.1,0.55]
[1720392364774,0.10998701,2963.7,2963.1,0.55]
[1720392364965,0.10998701,2963.6,2963.1,0.55]
[1720392365165,0.10998701,2963.5,2963.1,0.55]
[1720392365391,0.10998701,2963.4,2963.1,0.55]
[1720392365709,0.10998701,2963.3,2963.1,0.55]
[1720392365894,0.10998701,2963.2,2963.1,0.55]
[1720392366088,0.10998701,2963.8,2963.1,0.55]
[1720392366276,0.70643951,2963.8,2963.1,0.55]
[1720392366475,0.10998701,2963.7,2963.1,0.55]
[1720392367202,0.10998701,2963.7,2963.2,0.06748862]
[1720392367502,11.93729606,2964.6,2963.3,3.0266]
[1720392367721,1.33755824,2964.5,2963.4,0.06748154]
[1720392368001,2.2196401,2964.4,2963.5,0.55]
[1720392368303,0.1100049,2964.3,2963.5,0.55]
[1720392368664,0.1100049,2964.2,2963.5,0.55]
[1720392368866,0.1100049,2964.1,2963.6,0.03352191]
[1720392369077,0.1100049,2964.0,2963.6,0.03352191]
[1720392369372,0.1100049,2963.9,2963.6,0.03352191]
[1720392370180,0.35358734,2964.0,2963.7,2.4766]
[1720392370389,0.35358734,2964.0,2963.9,2.4766]
[1720392370589,0.35358734,2964.0,2963.9,3.0266]
[1720392370823,9.55989622,2965.2,2963.9,3.33934916]
[1720392371006,0.35349706,2964.3,2964.0,0.6174669]
[1720392371221,2.10989622,2965.1,2964.0,0.6174669]
[1720392371533,0.35349662,2964.3,2964.1,0.033423]
[1720392371731,2.10989622,2965.1,2964.1,0.033423]
[1720392371904,2.46154559,2965.3,2964.1,0.033423]
[1720392371905,0.35350247,2964.3,2964.1,0.033423]
[1720392372302,2.10989622,2965.0,2964.1,0.033423]
[1720392372502,0.3535009,2964.3,2964.1,0.033423]
[1720392372763,0.11004073,2964.2,2964.1,0.033423]
[1720392372913,0.35353817,2964.3,2964.2,0.033423]
[1720392373115,0.35353817,2964.3,2963.5,8.16097384]
[1720392373116,0.46356434,2964.3,2963.5,8.16097384]
[1720392373346,0.11002617,2964.2,2963.6,0.583423]
[1720392373906,0.11001826,2964.1,2963.6,0.583423]
[1720392374147,0.11001826,2964.0,2963.6,0.583423]
[1720392374446,0.11001826,2963.9,2963.6,0.583423]
[1720392374605,0.35353817,2964.3,2963.6,0.583423]
[1720392374946,0.11002524,2964.2,2963.6,0.583423]
[1720392376417,2.10950752,2964.1,2963.6,0.583423]
[1720392376744,0.11002524,2964.0,2963.6,0.583423]
[1720392377056,0.11005094,2963.9,2963.6,0.583423]
[1720392377202,0.1100538,2963.8,2963.6,0.583423]
[1720392377408,3.35353817,2964.3,2963.6,0.583423]
[1720392377641,0.44541337,2964.2,2963.6,0.583423]
[1720392377838,0.11005955,2964.1,2963.6,0.583423]
[1720392378743,0.11012208,2964.0,2963.6,0.583423]
[1720392379814,0.11012208,2964.0,2963.6,0.033423]
[1720392380313,0.11010436,2963.9,2963.6,0.033423]
[1720392380531,0.52210373,2963.9,2963.6,0.033423]
[1720392380851,0.52210373,2963.9,2963.7,0.03332412]
[1720392381340,0.52210373,2963.9,2963.8,0.03337852]
[1720392381654,0.52210373,2963.9,2963.2,2.331]
[1720392381806,0.52210373,2963.9,2963.3,0.55]
[1720392382003,0.52210373,2963.9,2963.3,0.58337852]
[1720392382433,2.63303667,2963.9,2963.3,0.58337852]
[1720392382740,0.56330367,2963.8,2963.3,0.58337852]
[1720392382954,2.11093294,2963.8,2963.3,0.58337852]
[1720392383451,0.52210373,2963.9,2963.3,0.58337852]
[1720392383618,2.63245642,2963.9,2963.3,0.58337852]
[1720392384765,0.03306239,2963.7,2963.3,0.58337852]
[1720392385256,0.03306239,2963.7,2963.3,0.03337852]
[1720392385428,2.11035269,2963.6,2963.3,0.03337852]
[1720392385633,2.11035269,2963.6,2963.1,5.82997384]
[1720392386142,2.11035269,2963.6,2963.2,0.03282079]
[1720392386340,0.21434151,2963.5,2963.1,5.82997384]
[1720392386569,0.21434151,2963.5,2963.2,0.03282079]
[1720392387023,0.21434151,2963.5,2963.1,5.82997384]
[1720392387420,0.21434151,2963.5,2963.2,0.0328851]
[1720392387756,0.21434151,2963.5,2963.1,5.82997384]
[1720392388054,2.10727644,2963.6,2963.2,0.03289005]
[1720392388055,0.2321618,2963.4,2963.2,0.03289005]
[1720392388240,0.58581971,2963.4,2963.2,0.03289005]
[1720392389056,2.10727644,2963.3,2963.2,0.03289005]
[1720392389228,2.10727644,2963.3,2963.1,5.82997384]
[1720392389625,5.10727644,2963.3,2963.2,0.03289005]
[1720392389943,2.10727644,2963.3,2962.5,2.3264]
[1720392390123,2.10734927,2963.3,2962.6,0.58289005]
[1720392390329,0.24609344,2963.2,2962.6,0.58289005]
[1720392391356,0.24609344,2963.2,2962.6,0.03289005]
[1720392394974,2.35294344,2963.2,2962.6,0.03289005]
[1720392395281,0.24609344,2963.2,2962.6,0.03289005]
[1720392395574,0.53529434,2963.1,2962.6,0.03289005]
[1720392396237,3.53529434,2963.1,2962.6,0.03289005]
[1720392396837,2.83029434,2963.1,2962.6,0.03289005]
[1720392397043,5.10696012,2963.0,2962.6,0.03289005]
[1720392397256,5.10696012,2963.0,2962.1,2.4178]
[1720392397257,2.10737984,2962.9,2962.1,2.4178]
[1720392397493,2.90110529,2962.9,2962.1,2.4178]
[1720392397695,2.295,2962.7,2962.2,0.03350358]
[1720392397909,4.40237984,2962.7,2962.2,0.03350358]
[1720392398108,3.74023798,2962.6,2961.7,8.24777384]
[1720392398407,3.74023798,2962.6,2961.8,0.03350358]
[1720392398904,6.13863798,2962.6,2961.8,0.03350358]
[1720392399099,8.24601782,2962.6,2961.8,0.03350358]
[1720392399272,2.10737984,2962.5,2961.8,0.03350358]
[1720392399471,0.82460178,2962.4,2961.8,0.03350358]
[1720392400487,0.82460178,2962.4,2961.7,2.4178]
[1720392400693,0.82460178,2962.4,2961.8,0.03350358]
[1720392400865,0.82460178,2962.4,2961.2,2.3475]
[1720392401066,0.82460178,2962.4,2961.3,0.03350358]
[1720392401472,0.82460178,2962.4,2961.3,0.58350358]
[1720392401671,0.82460178,2962.4,2961.3,0.87660394]
[1720392402259,0.82460178,2962.4,2961.3,0.58350358]
[1720392402485,2.295,2962.3,2961.3,0.58350358]
[1720392402659,5.295,2962.3,2961.3,0.58350358]
[1720392402860,7.40125755,2962.3,2961.3,0.58350358]
[1720392403276,5.295,2962.3,2961.3,0.58350358]
[1720392403479,0.61196018,2962.2,2961.3,0.03350358]
[1720392403796,4.285,2962.0,2961.3,0.03350358]
[1720392404122,3.0,2961.9,2961.3,0.03350358]
[1720392404306,3.0,2961.9,2960.7,8.17747384]
[1720392404604,0.7285,2961.8,2960.7,8.17747384]
[1720392404811,0.7285,2961.8,2960.8,0.03281762]
[1720392405020,3.0,2961.9,2960.9,2.3475]
[1720392405314,3.0,2962.1,2961.1,2.461]
[1720392405520,0.35382008,2962.2,2961.3,2.461]
[1720392405817,0.35382008,2962.2,2961.4,0.58281762]
[1720392405981,1.10866227,2962.2,2961.4,0.58281762]
[1720392407030,0.35382008,2962.2,2961.5,2.461]
[1720392407230,0.35382008,2962.2,2961.7,2.461]
[1720392407386,0.35382008,2962.2,2961.8,0.06751594]
[1720392407589,0.35382008,2962.2,2961.9,0.55]
[1720392408034,0.35382008,2962.2,2961.8,0.55]
[1720392408240,0.35382008,2962.2,2962.0,0.03281762]
[1720392408447,0.35382008,2962.2,2961.9,0.55]
[1720392408613,0.35382008,2962.2,2962.1,0.03281762]
[1720392409172,0.35382008,2962.2,2961.9,0.55]
[1720392409290,0.35382008,2962.2,2962.0,0.03281762]
[1720392409490,0.35382008,2962.2,2961.8,0.55]
[1720392409727,0.35382008,2962.2,2961.9,0.03281762]
[1720392410893,0.35382008,2962.2,2961.4,5.82997384]
[1720392410894,0.72620209,2962.2,2961.4,2.4206]
[1720392411094,0.35382008,2962.2,2961.5,0.58281762]
[1720392411295,0.35382008,2962.2,2961.4,2.4206]
[1720392412228,0.35382008,2962.2,2961.0,2.3506]
[1720392412606,0.35382008,2962.2,2961.1,0.03281762]
[1720392413613,2.295,2962.0,2961.1,0.03281762]
[1720392413934,0.2295,2961.9,2961.1,0.03281762]
[1720392414138,3.2295,2961.9,2961.1,0.03281762]
[1720392414307,3.2295,2961.9,2960.6,2.3506]
[1720392414817,3.2295,2961.9,2960.7,0.03291665]
[1720392416032,3.2295,2961.9,2960.7,0.58291665]
[1720392416195,0.79493,2961.8,2960.7,0.58291665]
[1720392416401,0.79493,2961.8,2960.7,0.03291665]
[1720392418456,2.295,2961.6,2960.7,0.03291665]
[1720392418826,2.295,2961.6,2960.2,8.32387384]
[1720392419140,2.295,2961.6,2960.3,0.55]
[1720392419340,0.5295,2961.5,2960.3,0.55]
[1720392419521,3.5295,2961.5,2960.4,0.03291665]
[1720392420260,5.9815,2961.5,2960.4,0.03291665]
[1720392421884,3.5295,2961.5,2960.4,0.03291665]
[1720392422039,0.5295,2961.5,2960.4,0.03291665]
[1720392422871,4.0915,2961.5,2960.4,0.03291665]
[1720392423074,3.52213486,2961.4,2960.4,0.03291665]
[1720392423445,3.52213486,2961.4,2960.2,2.4939]
[1720392423685,3.52213486,2961.4,2960.5,0.03291665]
[1720392423895,2.295,2961.3,2960.5,0.03291665]
[1720392424092,2.295,2961.3,2959.9,5.82997384]
[1720392424093,2.3034,2961.2,2959.9,5.82997384]
[1720392424292,6.24131349,2961.2,2960.0,0.55]
[1720392424567,6.24131349,2961.2,2960.0,0.03291665]
[1720392427189,3.93791349,2961.2,2960.0,0.03291665]
[1720392427352,3.93791349,2961.2,2959.9,0.55]
[1720392427550,1.36745619,2961.1,2959.9,0.55]
[1720392427768,4.36745619,2961.1,2959.8,2.3974]
[1720392429356,7.92945619,2961.1,2959.4,5.82997384]
[1720392429588,2.4084,2961.0,2959.5,0.58338732]
[1720392429792,1.03378562,2960.9,2959.5,0.58338732]
[1720392430265,4.03378562,2960.9,2959.5,0.58338732]
[1720392431873,6.32878562,2960.9,2959.5,0.58338732]
[1720392434698,9.89078562,2960.9,2959.5,0.58338732]
[1720392434909,5.998,2960.8,2959.5,0.58338732]
[1720392435087,4.23267856,2960.7,2959.5,0.58338732]
[1720392435469,4.23267856,2960.7,2959.5,0.03338732]
[1720392436385,2.436,2960.6,2959.1,2.3425]
[1720392436587,2.436,2960.6,2959.2,0.5850816]
[1720392439304,0.35362857,2960.5,2959.2,0.5850816]
[1720392439501,0.63516286,2960.4,2959.2,0.87783976]
[1720392440670,0.10966183,2960.3,2959.2,0.87783976]
[1720392441615,0.63516286,2960.4,2959.2,0.87783976]
[1720392441808,0.10962688,2960.3,2959.2,0.87783976]
[1720392442587,0.10962688,2960.3,2959.2,0.5850816]
[1720392442808,1.87244325,2960.4,2959.2,0.5850816]
[1720392443035,0.10962688,2960.3,2959.2,0.5850816]
[1720392443714,0.10962688,2960.2,2959.2,0.5850816]
[1720392444020,0.10962688,2960.1,2959.2,0.0350816]
[1720392444322,0.10962688,2960.0,2959.2,0.0350816]
[1720392444485,0.10962688,2959.9,2959.2,0.0350816]
[1720392444806,3.0,2960.3,2959.2,0.0350816]
[1720392445020,0.82936969,2960.2,2959.2,0.0350816]
[1720392445176,0.1096534,2960.1,2959.2,0.0350816]
[1720392445375,0.10965239,2960.0,2959.2,0.0350816]
[1720392445706,0.10965239,2959.9,2959.2,0.0350816]
[1720392445870,0.71971629,2960.2,2959.2,0.0350816]
[1720392446071,0.48164058,2960.1,2959.2,0.0350816]
[1720392446271,2.49766895,2960.0,2959.2,0.0350816]
[1720392446512,0.10966895,2959.9,2959.2,0.0350816]
[1720392446838,2.388,2960.0,2959.2,0.0350816]
[1720392447106,0.38567084,2959.9,2959.2,0.0350816]
[1720392447304,0.27599716,2959.9,2959.2,0.0350816]
[1720392448131,0.27599716,2959.9,2958.6,8.20187384]
[1720392448132,3.27599716,2959.9,2958.6,8.20187384]
[1720392448433,3.27599716,2959.9,2959.3,0.03534935]
[1720392448434,0.1096576,2959.8,2959.3,0.03534935]
[1720392448614,0.67605732,2959.8,2958.7,0.55]
[1720392448928,0.1096576,2959.7,2958.8,0.03424211]
[1720392449501,3.27599716,2959.9,2958.8,0.03424211]
[1720392449502,3.0,2959.9,2958.8,0.03424211]
[1720392449704,0.5388,2959.9,2958.8,0.03424211]
[1720392450028,0.10962501,2959.8,2958.8,0.03424211]
[1720392451286,3.5388,2959.9,2958.8,0.03424211]
[1720392451522,0.10960946,2959.8,2958.8,0.03424211]
[1720392451698,3.5388,2959.9,2958.8,0.03424211]
[1720392451902,0.59268,2959.8,2958.8,0.32985632]
[1720392452100,0.59268,2959.8,2958.9,0.55]
[1720392452303,0.59268,2959.8,2958.9,0.58436114]
[1720392454008,0.10963237,2959.7,2958.9,0.58436114]
[1720392454200,0.37023124,2959.7,2958.9,0.58436114]
[1720392454616,0.35364833,2959.6,2958.9,0.58436114]
[1720392455539,0.35364833,2959.6,2959.0,2.4047]
[1720392456034,0.35364833,2959.6,2959.1,0.03436114]
[1720392456333,0.10960565,2959.5,2959.1,0.03436114]
[1720392457129,0.35364833,2959.6,2959.1,0.03436114]
[1720392457692,0.10962619,2959.5,2959.1,0.03436114]
[1720392458004,0.10961841,2959.4,2959.1,0.03436114]
[1720392458219,0.10961841,2959.3,2959.1,0.03436114]
[1720392458436,0.10961841,2959.5,2959.1,0.03436114]
[1720392458642,0.10961481,2959.4,2959.1,0.03436114]
[1720392458821,0.10961481,2959.3,2959.1,0.03436114]
[1720392459025,0.35364833,2959.6,2959.1,0.03436114]
[1720392459347,0.10960983,2959.5,2959.1,0.03436114]
[1720392461228,0.10960983,2959.5,2959.3,2.4047]
[1720392461428,0.10960983,2959.5,2959.4,0.55]
[1720392461622,0.10960983,2959.5,2959.4,0.58439587]
[1720392461954,3.09585559,2960.3,2959.5,2.4047]
[1720392461955,0.03306239,2960.3,2959.5,2.4047]
[1720392462156,0.10962231,2960.2,2959.6,0.55]
[1720392462452,0.10962231,2960.2,2959.7,0.39147]
[1720392462760,0.10962231,2960.2,2959.8,0.03418759]
[1720392462931,0.10962231,2960.2,2959.6,0.55]
[1720392463135,0.10962231,2960.2,2959.9,0.03418759]
[1720392463421,0.10962231,2960.2,2959.6,0.55]
[1720392463623,0.10962231,2960.2,2960.0,0.03418759]
[1720392463822,0.10962231,2960.2,2959.6,0.55]
[1720392464324,0.10962231,2960.2,2959.7,0.03412314]
[1720392464529,0.89855235,2960.2,2959.7,0.03412314]
[1720392464716,2.2140321,2960.1,2959.2,2.4921]
[1720392464925,0.10962231,2960.0,2959.2,2.4921]
[1720392465269,3.78893004,2960.2,2959.3,0.03409339]
[1720392465270,2.10571851,2959.8,2959.3,0.03409339]
[1720392465429,2.43723945,2959.7,2959.3,0.03409339]
[1720392465615,0.10961026,2959.6,2958.9,2.4921]
[1720392466049,0.10961026,2959.6,2959.0,0.03423718]
[1720392466642,0.10959503,2959.5,2959.0,0.58423718]
[1720392466879,0.10959503,2959.4,2959.0,0.58423718]
[1720392467158,0.10959503,2959.3,2959.0,0.58423718]
[1720392467332,0.10959503,2959.2,2959.0,0.58423718]
[1720392467524,0.10959503,2959.1,2959.0,0.58423718]
[1720392467867,0.10959503,2959.6,2959.0,0.58423718]
[1720392468019,0.10959503,2959.5,2959.0,0.58423718]
[1720392468224,0.10950138,2959.4,2959.0,0.03423718]
[1720392468435,0.10949911,2959.3,2959.0,0.03423718]
[1720392468757,2.10484165,2959.5,2959.0,0.03423718]
[1720392468916,2.10484165,2959.6,2959.0,0.03423718]
[1720392469119,2.10484165,2959.5,2959.0,0.03423718]
[1720392469665,2.61532582,2959.5,2959.0,0.03423718]
[1720392469843,2.10484165,2959.4,2959.0,0.03423718]
[1720392470224,2.10484165,2959.3,2959.0,0.03423718]
[1720392471449,0.51048417,2959.5,2959.0,0.03423718]
[1720392471635,2.10484935,2959.3,2959.0,0.03423718]
[1720392472036,2.10484935,2959.4,2959.0,0.03423718]
[1720392472235,2.10484935,2959.3,2959.0,0.03423718]
[1720392472623,2.10484935,2959.3,2958.6,2.3798]
[1720392472964,2.10484935,2959.3,2958.7,0.58444545]
[1720392474872,2.10410428,2959.3,2958.7,0.58444545]
[1720392475036,2.10410428,2959.2,2958.7,0.58444545]
[1720392475234,2.10484385,2959.2,2958.7,0.58444545]
[1720392475436,2.10484385,2959.2,2958.7,0.03444545]
[1720392475876,2.31532824,2959.2,2958.7,0.03444545]
[1720392476040,2.10484385,2959.1,2958.7,0.03444545]
[1720392476946,2.31532824,2959.2,2958.7,0.03444545]
[1720392477481,2.10484385,2959.1,2958.7,0.03444545]
[1720392478052,0.21048439,2959.2,2958.7,0.03444545]
[1720392478373,2.10532308,2959.2,2958.7,0.03444545]
[1720392478954,2.10532308,2959.3,2958.7,0.03444545]
[1720392480263,2.10532308,2959.3,2958.8,2.4076]
[1720392480447,2.10532308,2959.6,2958.9,0.03464388]
[1720392480642,2.10532308,2959.3,2958.8,2.4076]
[1720392480832,0.21053231,2959.5,2958.9,0.03478773]
[1720392481032,2.10492998,2959.3,2958.8,2.4076]
[1720392481233,2.10492998,2959.3,2958.9,0.03478773]
[1720392481475,2.10492998,2959.3,2958.8,2.4076]
[1720392481768,2.10492998,2959.3,2958.9,0.03478773]
[1720392482165,2.10492998,2959.3,2958.8,2.4076]
[1720392482564,2.10492998,2959.3,2958.9,0.0348175]
[1720392482773,0.21053231,2959.5,2959.0,2.2566]
[1720392482774,2.10492998,2959.5,2959.0,2.2566]
[1720392482969,2.10492998,2959.4,2958.3,2.2566]
[1720392483141,2.10492998,2959.3,2959.1,0.03477781]
[1720392483468,2.10492998,2959.2,2958.4,3.55]
[1720392483674,2.10492998,2959.2,2958.5,0.03478773]
[1720392484262,2.10513066,2959.2,2958.5,0.03478773]
[1720392484477,0.45606816,2959.3,2958.5,0.03478773]
[1720392484478,2.10513066,2959.0,2958.5,0.03478773]
[1720392486268,2.91205393,2959.3,2958.5,0.03478773]
[1720392486269,2.10513066,2958.9,2958.5,0.03478773]
[1720392486439,0.21051307,2958.8,2958.3,2.2566]
[1720392486644,0.21051307,2958.8,2958.4,0.03479765]
[1720392487339,2.10559609,2958.7,2958.4,0.03479765]
[1720392487802,2.10559609,2958.6,2958.4,0.03479765]
[1720392487956,2.10559609,2958.6,2957.7,996.36113187]
[1720392487957,2.3961,2958.5,2957.7,996.36113187]
[1720392488161,2.10440334,2957.9,2957.7,996.36113187]
[1720392488350,0.21044033,2957.8,2957.7,996.36113187]
[1720392489454,2.10440334,2958.0,2957.7,996.36113187]
[1720392490045,3.0,2958.2,2957.7,996.36113187]
[1720392490376,2.1006922,2958.0,2957.7,996.36113187]
[1720392491004,3.0,2958.2,2957.7,996.36113187]
[1720392491005,2.1006922,2958.1,2957.7,996.36113187]
[1720392491290,2.1006922,2958.2,2957.7,996.36113187]
[1720392491494,0.51006922,2958.1,2957.7,996.36113187]
[1720392493665,3.0,2958.4,2957.7,996.36113187]
[1720392493864,2.09683101,2958.3,2957.7,996.36113187]
[1720392495070,2.0959903,2958.3,2957.7,996.36113187]
[1720392495255,5.0959903,2958.4,2957.7,996.36113187]
[1720392495473,0.86619903,2958.3,2957.7,996.36113187]
[1720392495683,2.436,2958.2,2957.7,996.36113187]
[1720392495990,5.436,2958.2,2957.7,996.36113187]
[1720392496198,5.78982556,2958.2,2957.7,996.36113187]
[1720392497194,11.44992143,2958.2,2957.7,996.36113187]
[1720392497405,1.23161205,2958.1,2957.7,996.36113187]
[1720392497557,4.23161205,2958.1,2957.7,996.36113187]
[1720392498358,7.79761205,2958.1,2957.7,996.36113187]
[1720392498593,9.89170792,2958.1,2957.7,996.36113187]
[1720392498761,7.79761205,2958.1,2957.7,996.36113187]
[1720392498961,1.26815335,2958.0,2957.7,996.36113187]
[1720392502967,1.26815335,2958.0,2957.8,0.03005917]
[1720392506615,4.83415335,2958.0,2957.7,994.55435406]
[1720392506939,3.566,2957.8,2957.7,985.08116717]
[1720392507402,6.566,2957.8,2957.7,985.08116717]
[1720392507905,16.522627,2957.8,2957.7,974.80571893]
[1720392508110,18.022627,2957.8,2957.7,974.80571893]
[1720392508265,20.48922674,2957.8,2957.7,974.31532893]
[1720392508461,20.05592774,2957.8,2957.7,974.31532893]
[1720392508933,18.78833974,2957.8,2957.7,974.31532893]
[1720392509131,17.28833974,2957.8,2957.7,973.66732893]
[1720392509415,16.08843974,2957.8,2957.7,972.80482893]
[1720392509985,15.68160274,2957.8,2957.7,972.80482893]
[1720392510181,13.00709974,2957.8,2957.7,972.80482893]
[1720392510820,13.00709974,2957.8,2957.7,971.39582893]
[1720392511010,17.37329774,2957.8,2957.7,970.85912893]
[1720392511961,17.37329774,2957.8,2957.7,967.49138893]
[1720392512441,17.37329774,2957.8,2957.7,959.65779737]
[1720392512645,17.92329774,2957.8,2957.7,959.65779737]
[1720392512845,17.92329774,2957.8,2957.7,956.50316737]
[1720392513263,20.01114637,2957.8,2957.7,951.49571887]
[1720392513405,22.51394395,2957.8,2957.7,944.30224254]
[1720392513743,20.42609532,2957.8,2957.7,941.84484254]
[1720392513945,20.42609532,2957.8,2957.7,919.28518079]
[1720392514129,20.7800032,2957.8,2957.7,918.82949224]
[1720392514458,43.2717052,2957.8,2957.7,918.72770969]
[1720392514633,43.2717052,2957.8,2957.7,918.52430969]
[1720392515018,42.3387602,2957.8,2957.7,918.42252714]
[1720392515219,42.3387602,2957.8,2957.7,918.32074459]
[1720392515433,41.9648172,2957.8,2957.7,918.12574459]
[1720392515627,32.82593453,2957.8,2957.7,918.12574459]
[1720392515829,30.7392382,2957.8,2957.7,917.78329078]
[1720392516047,21.8999877,2957.8,2957.7,917.25139078]
[1720392516373,21.8999877,2957.8,2957.7,917.14960823]
[1720392516509,21.8999877,2957.8,2957.7,916.60850823]
[1720392516704,19.81334964,2957.8,2957.7,915.83980823]
[1720392516903,19.81334964,2957.8,2957.7,908.23170432]
[1720392516904,23.39975908,2957.8,2957.7,908.23170432]
[1720392517130,21.31334964,2957.8,2957.7,901.11288854]
[1720392517333,21.31334964,2957.8,2957.7,900.14088854]
[1720392517553,21.31334964,2957.8,2957.7,900.03910599]
[1720392517715,17.3467499,2957.8,2957.7,853.29134505]
[1720392517927,20.32108098,2957.8,2957.7,852.80934505]
[1720392518336,23.19590743,2957.8,2957.7,852.17934505]
[1720392518657,20.32108939,2957.8,2957.7,851.27914505]
[1720392518823,20.32108939,2957.8,2957.7,850.5689351]
[1720392519023,20.32108939,2957.8,2957.7,850.4671453]
[1720392519372,20.3210914,2957.8,2957.7,849.58996748]
[1720392519517,22.40445812,2957.8,2957.7,848.10496748]
[1720392519721,22.75420937,2957.8,2957.7,848.00317768]
[1720392519922,22.75420937,2957.8,2957.7,847.80138868]
[1720392520225,22.75321042,2957.8,2957.7,846.44138868]
[1720392520947,22.75321042,2957.8,2957.7,845.45701889]
[1720392521164,22.75321042,2957.8,2957.7,845.1650524]
[1720392521462,20.32102824,2957.8,2957.7,844.2722626]